[Event "FIDE WCCC Open-08 2024"]
[Site "Montesilvano"]
[Date "2024.11.25"]
[Round "10.30"]
[White "Saathvik Chakravarthy Ramayana"]
[Black "Le Doan, Minh Thuc"]
[Result "1-0"]
[Annotator "NA RC"]
[ECO "B22"]
[WhiteElo "1466"]
[BlackElo "1677"]
[PlyCount "51"]
[EventDate "2024.11.18"]
[EventType "swiss"]
[EventCountry "ITA"]
[SourceTitle "playchess.com"]
[Source "ChessBase"]
[SourceQuality "1"]
[TimeControl "5400+30"]

1. e4 {[%emt 0:01:47]} c5 {[%emt 0:00:07]} 2. c3 {[%emt 0:00:43]} d5 {[%emt 0:01:11]} 3. exd5 {[%emt 0:00:11]} Nf6 {[%emt 0:00:31]} 4. d4 {[%emt 0:00:12]} Qxd5 {[%emt 0:00:20]} 5. Nf3 {[%emt 0:00:13]} Nc6 {[%emt 0:01:33]} 6. Be2 {[%emt 0:00:17]} e6 {[%emt 0:04:34]} 7. Be3 {[%emt 0:00:18]} cxd4 {[%emt 0:11:44]} 8. cxd4 {[%emt 0:00:11]} Bb4+ {[%emt 0:00:13]} 9. Nc3 {[%emt 0:15:31]} O-O {[%emt 0:37:30]} 10. O-O {[%emt 0:01:26]} Bxc3 {[%emt 0:00:35]} 11. bxc3 {[%emt 0:00:15]} b6 {[%emt 0:00:28]} 12. Qc2 {[%emt 0:06:20]} Bb7 {[%emt 0:01:25]} 13. c4 {[%emt 0:04:28]} Qd6 {[%emt 0:03:52]} 14. Rfd1 {[%emt 0:03:35]} Ng4 {[%emt 0:02:44]} 15. Qd2 {[%emt 0:27:25]} Nxe3 {[%emt 0:02:43]} 16. Qxe3 {[%emt 0:03:48]} Ne7 {[%emt 0:01:03]} 17. Bd3 {[%emt 0:02:10]} Ng6 {[%emt 0:02:33]} 18. Ng5 {[%emt 0:03:40]} Qd8 {[%emt 0:17:16]} 19. h4 {[%emt 0:03:35]} h6 {[%emt 0:05:16]} 20. Nxe6 {[%emt 0:01:22]} Qxh4 {[%emt 0:01:06]} 21. Nxf8 {[%emt 0:01:38]} Nxf8 {[%emt 0:00:08]} 22. d5 {[%emt 0:01:58]} Rd8 {[%emt 0:02:39]} 23. Qe4 {[%emt 0:00:27]} Qg5 {[%emt 0:00:31]} 24. Re1 {[%emt 0:01:16]} Ng6 {[%emt 0:01:57]} 25. Re3 {[%emt 0:01:32]} Nf4 {[%emt 0:00:30]} 26. Qh7+ {[%emt 0:00:17]} 1-0

[Event "FIDE WCCC Open-08 2024"]
[Site "Montesilvano"]
[Date "2024.11.25"]
[Round "10.31"]
[White "Ok, Miro"]
[Black "Borkowski, Jan"]
[Result "1/2-1/2"]
[Annotator "NA RC"]
[ECO "B84"]
[WhiteElo "1656"]
[BlackElo "1481"]
[PlyCount "77"]
[EventDate "2024.11.18"]
[EventType "swiss"]
[EventCountry "ITA"]
[SourceTitle "playchess.com"]
[Source "ChessBase"]
[SourceQuality "1"]
[TimeControl "5400+30"]

1. e4 {[%emt 0:00:32]} c5 {[%emt 0:00:08]} 2. Nf3 {[%emt 0:00:37]} e6 {[%emt 0:00:12]} 3. d4 {[%emt 0:00:28]} cxd4 {[%emt 0:00:22]} 4. Nxd4 {[%emt 1:30:53]} Nc6 {[%emt 0:00:09]} 5. Nc3 {[%emt 0:00:00]} Qc7 {[%emt 0:00:30]} 6. Be3 {[%emt 0:00:00]} a6 {[%emt 0:00:46]} 7. a3 {[%emt 0:00:00]} Nf6 {[%emt 0:01:43]} 8. Be2 {[%emt 0:00:00]} Be7 {[%emt 0:00:52]} 9. O-O {[%emt 0:00:00]} O-O {[%emt 0:01:02]} 10. f4 {[%emt 0:00:00]} d6 {[%emt 0:00:25]} 11. Qe1 {[%emt 0:00:00]} b5 {[%emt 0:01:37]} 12. Bf3 {[%emt 0:00:00]} Bb7 {[%emt 0:02:13]} 13. Nxc6 {[%emt 0:00:00]} Bxc6 {[%emt 0:01:18]} 14. Qg3 {[%emt 0:00:00]} Rad8 {[%emt 0:03:51]} 15. f5 {[%emt 0:00:00]} Qb7 {[%emt 0:07:19]} 16. Bh6 {[%emt 0:00:00]} Ne8 {[%emt 0:01:36]} 17. Bh5 {[%emt 0:00:00]} Bf6 {[%emt 0:02:54]} 18. Bg5 {[%emt 0:00:00]} h6 {[%emt 0:27:07]} 19. Bxh6 {[%emt 0:00:00]} Kh7 {[%emt 0:00:10]} 20. Bg5 {[%emt 0:00:00]} exf5 {[%emt 0:39:24]} 21. exf5 {[%emt 0:00:00]} Bxg2 {[%emt 0:01:49]} 22. Bg6+ {[%emt 0:00:00]} fxg6 {[%emt 0:02:21]} 23. Qh4+ {[%emt 0:00:00]} Kg8 {[%emt 0:00:13]} 24. fxg6 {[%emt 0:00:00]} Bd4+ {[%emt 0:00:41]} 25. Qxd4 {[%emt 0:00:00]} Rxf1+ {[%emt 0:01:42]} 26. Rxf1 {[%emt 0:00:00]} Bxf1 {[%emt 0:00:07]} 27. Nd5 {[%emt 0:00:00]} Rd7 {[%emt 0:00:52]} 28. Qh4 {[%emt 0:00:00]} Qxd5 {[%emt 0:00:55]} 29. Qh7+ {[%emt 0:00:00]} Kf8 {[%emt 0:00:08]} 30. Qh8+ {[%emt 0:00:00]} Qg8 {[%emt 0:00:05]} 31. Qh4 {[%emt 0:00:00]} Nc7 {[%emt 0:01:03]} 32. Qh7 {[%emt 0:00:00]} Ne6 {[%emt 0:00:46]} 33. Be3 {[%emt 0:00:00]} Be2 {[%emt 0:00:52]} 34. Bb6 {[%emt 0:00:00]} Bd1 {[%emt 0:00:34]} 35. Qh3 {[%emt 0:00:00]} Ke8 {[%emt 0:00:44]} 36. Qg2 {[%emt 0:00:00]} Nd8 {[%emt 0:00:41]} 37. Bxd8 {[%emt 0:00:00]} Rxd8 {[%emt 0:00:09]} 38. Qe4+ {[%emt 0:00:00]} Kd7 {[%emt 0:00:14]} 39. Qb7+ {[%emt 0:00:00]} 1/2-1/2

[Event "FIDE WCCC Open-08 2024"]
[Site "Montesilvano"]
[Date "2024.11.25"]
[Round "10.33"]
[White "Shroff, Dhairya Amit"]
[Black "Cardas, Serghei"]
[Result "1/2-1/2"]
[Annotator "NA RC"]
[ECO "B20"]
[WhiteElo "1444"]
[BlackElo "1627"]
[PlyCount "64"]
[EventDate "2024.11.18"]
[EventType "swiss"]
[EventCountry "ITA"]
[SourceTitle "playchess.com"]
[Source "ChessBase"]
[SourceQuality "1"]
[TimeControl "5400+30"]

1. e4 {[%emt 0:00:45]} e6 {[%emt 0:00:07]} 2. b3 {[%emt 0:00:44]} d5 {[%emt 0:00:11]} 3. Bb2 {[%emt 0:00:33]} c5 {[%emt 0:00:51]} 4. exd5 {[%emt 0:00:35]} exd5 {[%emt 0:00:05]} 5. Bb5+ {[%emt 0:00:29]} Nc6 {[%emt 0:02:55]} 6. Qe2+ {[%emt 0:01:23]} Qe7 {[%emt 0:00:16]} 7. Qxe7+ {[%emt 0:00:26]} Ngxe7 {[%emt 0:00:25]} 8. Nf3 {[%emt 0:00:53]} Bd7 {[%emt 0:02:02]} 9. O-O {[%emt 0:00:40]} O-O-O {[%emt 0:00:08]} 10. Ng5 {[%emt 0:01:25]} Be8 {[%emt 0:01:10]} 11. Ba3 {[%emt 0:04:57]} h6 {[%emt 0:01:13]} 12. Nf3 {[%emt 0:02:31]} Ng6 {[%emt 0:00:13]} 13. Rc1 {[%emt 0:04:40]} Bd6 {[%emt 0:01:21]} 14. c4 {[%emt 0:04:30]} d4 {[%emt 0:00:39]} 15. g3 {[%emt 0:01:08]} a6 {[%emt 0:00:55]} 16. Ba4 {[%emt 0:02:02]} Nce5 {[%emt 0:00:51]} 17. Ne1 {[%emt 0:03:25]} Bxa4 {[%emt 0:00:27]} 18. bxa4 {[%emt 0:00:10]} Rhe8 {[%emt 0:00:33]} 19. f4 {[%emt 0:02:40]} Nd7 {[%emt 0:01:35]} 20. Kf1 {[%emt 0:01:58]} Kb8 {[%emt 0:00:34]} 21. Ng2 {[%emt 0:01:28]} Nb6 {[%emt 0:01:08]} 22. a5 {[%emt 0:03:36]} Nd7 {[%emt 0:00:09]} 23. Ne1 {[%emt 0:01:36]} Nf6 {[%emt 0:00:55]} 24. d3 {[%emt 0:02:47]} Ng4 {[%emt 0:01:15]} 25. h3 {[%emt 0:02:01]} Ne3+ {[%emt 0:00:06]} 26. Kf2 {[%emt 0:00:39]} h5 {[%emt 0:03:51]} 27. h4 {[%emt 0:02:11]} Ng4+ {[%emt 0:01:25]} 28. Kf1 {[%emt 0:01:53]} Re3 {[%emt 0:01:07]} 29. Nd2 {[%emt 0:05:21]} f5 {[%emt 0:01:45]} 30. Ndf3 {[%emt 0:01:07]} Re7 {[%emt 0:02:45]} 31. Rab1 {[%emt 0:02:28]} Ka8 {[%emt 0:05:17]} 32. Rb6 {[%emt 0:01:35]} Red7 {[%emt 0:02:03]} 1/2-1/2

[Event "FIDE WCCC Open-08 2024"]
[Site "Montesilvano"]
[Date "2024.11.25"]
[Round "10.34"]
[White "Ameen Akbar T A"]
[Black "Movsisyan, Samvel"]
[Result "0-1"]
[Annotator "NA RC"]
[ECO "B33"]
[WhiteElo "1579"]
[BlackElo "1604"]
[PlyCount "96"]
[EventDate "2024.11.18"]
[EventType "swiss"]
[EventCountry "ITA"]
[SourceTitle "playchess.com"]
[Source "ChessBase"]
[SourceQuality "1"]
[TimeControl "5400+30"]

1. e4 {[%emt 0:00:57]} c5 {[%emt 0:00:08]} 2. Nf3 {[%emt 0:00:05]} Nc6 {[%emt 0:00:10]} 3. d4 {[%emt 0:00:11]} cxd4 {[%emt 0:00:08]} 4. Nxd4 {[%emt 0:00:14]} Nf6 {[%emt 0:00:08]} 5. Nc3 {[%emt 0:00:49]} e5 {[%emt 0:00:09]} 6. Ndb5 {[%emt 0:00:06]} Bb4 {[%emt 0:00:06]} 7. a3 {[%emt 0:00:55]} Bxc3+ {[%emt 0:00:14]} 8. Nxc3 {[%emt 0:00:05]} O-O {[%emt 0:00:13]} 9. Bc4 {[%emt 0:00:07]} d6 {[%emt 0:02:25]} 10. O-O {[%emt 0:00:09]} Be6 {[%emt 0:00:09]} 11. Qd3 {[%emt 0:02:05]} Nd4 {[%emt 0:05:41]} 12. Bxe6 {[%emt 0:00:32]} Nxe6 {[%emt 0:08:57]} 13. Rd1 {[%emt 0:02:06]} Nc5 {[%emt 0:00:37]} 14. Qf3 {[%emt 0:12:37]} h6 {[%emt 0:14:32]} 15. Be3 {[%emt 0:01:52]} Qe7 {[%emt 0:02:07]} 16. Nd5 {[%emt 0:09:17]} Nxd5 {[%emt 0:00:14]} 17. Rxd5 {[%emt 0:02:09]} Rac8 {[%emt 0:01:18]} 18. Rad1 {[%emt 0:08:58]} Na4 {[%emt 0:01:43]} 19. Bc1 {[%emt 0:24:21]} Rxc2 {[%emt 0:04:00]} 20. Qb3 {[%emt 0:00:22]} Qc7 {[%emt 0:00:43]} 21. Bxh6 {[%emt 0:06:43]} Nxb2 {[%emt 0:23:19]} 22. Bxg7 {[%emt 0:11:36]} Qc3 {[%emt 0:00:30]} 23. Qxc3 {[%emt 0:01:44]} Rxc3 {[%emt 0:00:06]} 24. Bxf8 {[%emt 0:00:11]} Nxd1 {[%emt 0:00:10]} 25. Bxd6 {[%emt 0:00:18]} Rc1 {[%emt 0:00:28]} 26. f3 {[%emt 0:00:49]} Ne3+ {[%emt 0:00:14]} 27. Kf2 {[%emt 0:00:06]} Nxd5 {[%emt 0:00:07]} 28. exd5 {[%emt 0:00:08]} Rd1 {[%emt 0:00:17]} 29. Bxe5 {[%emt 0:00:12]} Rxd5 {[%emt 0:00:07]} 30. f4 {[%emt 0:00:27]} Rd2+ {[%emt 0:00:27]} 31. Kf1 {[%emt 0:00:22]} Rd3 {[%emt 0:00:07]} 32. Bb2 {[%emt 0:00:35]} Rb3 {[%emt 0:00:05]} 33. Be5 {[%emt 0:00:29]} Rxa3 {[%emt 0:00:09]} 34. h4 {[%emt 0:00:10]} b5 {[%emt 0:00:21]} 35. h5 {[%emt 0:00:38]} b4 {[%emt 0:00:32]} 36. g4 {[%emt 0:00:13]} b3 {[%emt 0:00:08]} 37. g5 {[%emt 0:00:08]} Ra2 {[%emt 0:00:15]} 38. g6 {[%emt 0:00:09]} fxg6 {[%emt 0:00:04]} 39. hxg6 {[%emt 0:00:24]} b2 {[%emt 0:00:04]} 40. Bxb2 {[%emt 0:00:18]} Rxb2 {[%emt 0:00:06]} 41. f5 {[%emt 0:00:01]} a5 {[%emt 0:39:42]} 42. f6 {[%emt 0:01:09]} a4 {[%emt 0:00:00]} 43. f7+ {[%emt 0:00:14]} Kg7 {[%emt 0:00:00]} 44. f8=Q+ {[%emt 0:00:09]} Kxf8 {[%emt 0:00:00]} 45. g7+ {[%emt 0:00:09]} Kxg7 {[%emt 0:00:00]} 46. Ke1 {[%emt 0:00:12]} a3 {[%emt 0:00:00]} 47. Kd1 {[%emt 0:00:07]} a2 {[%emt 0:00:00]} 48. Kc1 {[%emt 0:00:14]} a1=Q# {[%emt 0:00:00]} 0-1

[Event "FIDE WCCC Open-08 2024"]
[Site "Montesilvano"]
[Date "2024.11.25"]
[Round "10.36"]
[White "Nguyen Thanh San"]
[Black "Dzelnik, Robert"]
[Result "0-1"]
[Annotator "NA RC"]
[ECO "D02"]
[WhiteElo "1493"]
[BlackElo "1822"]
[PlyCount "70"]
[EventDate "2024.11.18"]
[EventType "swiss"]
[EventCountry "ITA"]
[SourceTitle "playchess.com"]
[Source "ChessBase"]
[SourceQuality "1"]
[TimeControl "5400+30"]

1. d4 {[%emt 0:00:44]} d5 {[%emt 0:00:06]} 2. Bf4 {[%emt 0:00:14]} Nf6 {[%emt 0:00:27]} 3. e3 {[%emt 0:00:18]} c5 {[%emt 0:00:23]} 4. Nf3 {[%emt 0:00:09]} Nc6 {[%emt 0:01:20]} 5. c3 {[%emt 0:00:10]} Qb6 {[%emt 0:02:00]} 6. Qc2 {[%emt 0:00:06]} Bg4 {[%emt 0:03:02]} 7. dxc5 {[%emt 0:03:11]} Qxc5 {[%emt 0:00:33]} 8. Be2 {[%emt 0:01:04]} Bxf3 {[%emt 0:05:48]} 9. Bxf3 {[%emt 0:01:08]} e5 {[%emt 0:00:37]} 10. Bg3 {[%emt 0:01:50]} Be7 {[%emt 0:03:11]} 11. Nd2 {[%emt 0:00:23]} O-O {[%emt 0:04:37]} 12. O-O {[%emt 0:01:48]} Rad8 {[%emt 0:02:02]} 13. Rac1 {[%emt 0:05:48]} e4 {[%emt 0:09:05]} 14. Be2 {[%emt 0:00:02]} b5 {[%emt 0:01:49]} 15. Nb3 {[%emt 0:00:19]} Qb6 {[%emt 0:00:28]} 16. Nd4 {[%emt 0:04:10]} a6 {[%emt 0:10:32]} 17. Rfd1 {[%emt 0:37:19]} Bd6 {[%emt 0:22:23]} 18. Rd2 {[%emt 0:02:40]} Bxg3 {[%emt 0:01:10]} 19. hxg3 {[%emt 0:05:06]} Ne5 {[%emt 0:01:51]} 20. Rcd1 {[%emt 0:01:27]} Rc8 {[%emt 0:05:28]} 21. Nf5 {[%emt 0:01:16]} Qe6 {[%emt 0:00:42]} 22. g4 {[%emt 0:03:09]} h6 {[%emt 0:23:56]} 23. f4 {[%emt 0:04:53]} exf3 {[%emt 0:00:00]} 24. gxf3 {[%emt 0:00:05]} Nc4 {[%emt 0:00:00]} 25. Bxc4 {[%emt 0:00:44]} Rxc4 {[%emt 0:00:00]} 26. Qd3 {[%emt 0:03:39]} Rd8 {[%emt 0:00:00]} 27. b3 {[%emt 0:00:31]} Rc7 {[%emt 0:00:00]} 28. c4 {[%emt 0:00:39]} bxc4 {[%emt 0:00:00]} 29. bxc4 {[%emt 0:00:02]} Rxc4 {[%emt 0:00:00]} 30. Qa3 {[%emt 0:04:11]} g6 {[%emt 0:00:00]} 31. Nd4 {[%emt 0:02:53]} Qe5 {[%emt 0:00:00]} 32. Ne2 {[%emt 0:00:55]} Nxg4 {[%emt 0:00:33]} 33. Nf4 {[%emt 0:02:00]} Nxe3 {[%emt 0:01:10]} 34. Kf2 {[%emt 0:03:15]} Nxd1+ {[%emt 0:00:24]} 35. Rxd1 {[%emt 0:00:01]} Qxf4 {[%emt 0:00:09]} 0-1

[Event "FIDE WCCC Open-08 2024"]
[Site "Montesilvano"]
[Date "2024.11.25"]
[Round "10.37"]
[White "Reclik, Jakub"]
[Black "Lan, Kai Zhou"]
[Result "0-1"]
[Annotator "NA RC"]
[ECO "B22"]
[WhiteElo "1458"]
[BlackElo "1784"]
[PlyCount "182"]
[EventDate "2024.11.18"]
[EventType "swiss"]
[EventCountry "ITA"]
[SourceTitle "playchess.com"]
[Source "ChessBase"]
[SourceQuality "1"]
[TimeControl "5400+30"]

1. e4 {[%emt 0:00:04]} c5 {[%emt 0:00:10]} 2. Nf3 {[%emt 0:00:12]} e6 {[%emt 0:00:07]} 3. c3 {[%emt 0:00:11]} d5 {[%emt 0:00:21]} 4. exd5 {[%emt 0:00:14]} Qxd5 {[%emt 0:00:18]} 5. d4 {[%emt 0:00:13]} Nc6 {[%emt 0:00:05]} 6. Be2 {[%emt 0:01:08]} Nf6 {[%emt 0:00:10]} 7. O-O {[%emt 0:01:49]} Be7 {[%emt 0:02:19]} 8. h3 {[%emt 0:01:21]} O-O {[%emt 0:01:06]} 9. Be3 {[%emt 1:29:48]} cxd4 {[%emt 0:02:52]} 10. Nxd4 {[%emt 0:00:00]} Rd8 {[%emt 0:01:56]} 11. Nxc6 {[%emt 0:00:00]} Qxc6 {[%emt 0:00:34]} 12. Qb3 {[%emt 0:00:00]} e5 {[%emt 0:02:33]} 13. Bf3 {[%emt 0:00:00]} e4 {[%emt 0:00:35]} 14. Be2 {[%emt 0:00:00]} Be6 {[%emt 0:00:13]} 15. Qb5 {[%emt 0:00:00]} Qc7 {[%emt 0:01:17]} 16. Nd2 {[%emt 0:00:00]} a6 {[%emt 0:00:52]} 17. Qa4 {[%emt 0:00:00]} b5 {[%emt 0:00:08]} 18. Qc2 {[%emt 0:00:00]} Qb7 {[%emt 0:03:04]} 19. Rac1 {[%emt 0:00:00]} Rac8 {[%emt 0:00:56]} 20. Rfd1 {[%emt 0:00:00]} Bd5 {[%emt 0:05:53]} 21. Nb3 {[%emt 0:00:00]} Nd7 {[%emt 0:02:43]} 22. Na5 {[%emt 0:00:00]} Qa8 {[%emt 0:00:10]} 23. Nb3 {[%emt 0:00:00]} Ne5 {[%emt 0:01:24]} 24. Nd4 {[%emt 0:00:00]} b4 {[%emt 0:01:50]} 25. Qd2 {[%emt 0:00:00]} Nc4 {[%emt 0:03:50]} 26. Bxc4 {[%emt 0:00:00]} Rxc4 {[%emt 0:00:38]} 27. b3 {[%emt 0:00:00]} bxc3 {[%emt 0:01:53]} 28. Rxc3 {[%emt 0:00:00]} Rxc3 {[%emt 0:00:10]} 29. Qxc3 {[%emt 0:00:00]} Rc8 {[%emt 0:01:43]} 30. Qd2 {[%emt 0:00:00]} Rd8 {[%emt 0:01:59]} 31. Nf5 {[%emt 0:00:00]} Bf6 {[%emt 0:00:55]} 32. Qa5 {[%emt 0:00:00]} Bb7 {[%emt 0:03:09]} 33. Rxd8+ {[%emt 0:00:00]} Qxd8 {[%emt 0:00:12]} 34. Qxd8+ {[%emt 0:00:00]} Bxd8 {[%emt 0:00:23]} 35. Kh2 {[%emt 0:00:00]} Bc7+ {[%emt 0:00:19]} 36. Kg1 {[%emt 0:00:00]} g6 {[%emt 0:00:37]} 37. Nd4 {[%emt 0:00:00]} Kf8 {[%emt 0:00:17]} 38. Kf1 {[%emt 0:00:00]} Ke7 {[%emt 0:00:29]} 39. Ke2 {[%emt 0:00:00]} f5 {[%emt 0:01:03]} 40. Bg5+ {[%emt 0:00:00]} Kd7 {[%emt 0:00:14]} 41. Kd2 {[%emt 0:00:00]} Be5 {[%emt 0:01:17]} 42. Nc2 {[%emt 0:00:00]} Bg7 {[%emt 0:02:13]} 43. Na3 {[%emt 0:00:00]} h6 {[%emt 0:00:24]} 44. Be3 {[%emt 0:00:00]} g5 {[%emt 0:00:17]} 45. Nc4 {[%emt 0:00:00]} f4 {[%emt 0:00:17]} 46. Bb6 {[%emt 0:00:00]} e3+ {[%emt 0:00:45]} 47. fxe3 {[%emt 0:00:00]} Bxg2 {[%emt 0:00:08]} 48. exf4 {[%emt 0:00:00]} gxf4 {[%emt 0:00:06]} 49. Ke2 {[%emt 0:00:00]} f3+ {[%emt 0:01:01]} 50. Kf2 {[%emt 0:00:00]} Bf6 {[%emt 0:01:08]} 51. Kg3 {[%emt 0:00:00]} Ke6 {[%emt 0:00:28]} 52. Nd2 {[%emt 0:00:00]} Be5+ {[%emt 0:00:28]} 53. Kf2 {[%emt 0:00:00]} Bxh3 {[%emt 0:00:20]} 54. Nxf3 {[%emt 0:00:00]} Bf4 {[%emt 0:00:09]} 55. Be3 {[%emt 0:00:00]} Bxe3+ {[%emt 0:00:12]} 56. Kxe3 {[%emt 0:00:00]} Kf5 {[%emt 0:00:15]} 57. Nh2 {[%emt 0:00:00]} h5 {[%emt 0:00:23]} 58. a3 {[%emt 0:00:00]} Bg2 {[%emt 0:00:42]} 59. Kf2 {[%emt 0:00:00]} Bd5 {[%emt 0:00:13]} 60. b4 {[%emt 0:00:00]} Bc6 {[%emt 0:00:38]} 61. Nf3 {[%emt 0:00:00]} Kf4 {[%emt 0:00:21]} 62. Nh4 {[%emt 0:00:00]} Kg4 {[%emt 0:00:32]} 63. Ng6 {[%emt 0:00:00]} Be4 {[%emt 0:00:15]} 64. Ne5+ {[%emt 0:00:00]} Kf4 {[%emt 0:00:19]} 65. Nc4 {[%emt 0:00:00]} h4 {[%emt 0:00:49]} 66. Ne3 {[%emt 0:00:00]} Bc6 {[%emt 0:02:05]} 67. Nf1 {[%emt 0:00:00]} Kg4 {[%emt 0:00:27]} 68. Nh2+ {[%emt 0:00:00]} Kf4 {[%emt 0:00:44]} 69. Nf1 {[%emt 0:00:00]} Ba4 {[%emt 0:00:30]} 70. Nd2 {[%emt 0:00:18]} Bb5 {[%emt 0:00:20]} 71. Nf3 {[%emt 0:00:13]} h3 {[%emt 0:00:08]} 72. Nh2 {[%emt 0:00:38]} Ke4 {[%emt 0:00:14]} 73. Nf1 {[%emt 0:09:46]} Kd3 {[%emt 0:02:03]} 74. Kg3 {[%emt 0:01:11]} Bd7 {[%emt 0:00:27]} 75. Kf4 {[%emt 0:00:23]} Kc3 {[%emt 0:02:06]} 76. Ke5 {[%emt 0:00:12]} Kb3 {[%emt 0:00:26]} 77. Kd6 {[%emt 0:00:08]} Bb5 {[%emt 0:00:11]} 78. Nh2 {[%emt 0:00:12]} Kxa3 {[%emt 0:00:48]} 79. Kc5 {[%emt 0:00:14]} Be2 {[%emt 0:00:07]} 80. Kd4 {[%emt 0:01:37]} Kxb4 {[%emt 0:00:11]} 81. Ke3 {[%emt 0:00:09]} Bh5 {[%emt 0:00:29]} 82. Kd2 {[%emt 0:00:14]} Kb3 {[%emt 0:00:10]} 83. Kc1 {[%emt 0:00:07]} Bg6 {[%emt 0:00:04]} 84. Kd2 {[%emt 0:00:13]} a5 {[%emt 0:00:07]} 85. Ke3 {[%emt 0:00:09]} a4 {[%emt 0:00:03]} 86. Nf1 {[%emt 0:00:09]} a3 {[%emt 0:00:08]} 87. Kf2 {[%emt 0:00:05]} a2 {[%emt 0:00:06]} 88. Nd2+ {[%emt 0:00:10]} Kc2 {[%emt 0:00:03]} 89. Nb3 {[%emt 0:00:28]} Kxb3 {[%emt 0:00:04]} 90. Kg3 {[%emt 0:02:29]} a1=Q {[%emt 0:00:04]} 91. Kxh3 {[%emt 0:00:10]} Qg1 {[%emt 0:00:18]} 0-1

[Event "FIDE WCCC Open-08 2024"]
[Site "Montesilvano"]
[Date "2024.11.25"]
[Round "10.38"]
[White "Solovev, Nikolai"]
[Black "Arsenijevic, Matija"]
[Result "0-1"]
[Annotator "NA RC"]
[ECO "B19"]
[WhiteElo "1446"]
[BlackElo "1700"]
[PlyCount "62"]
[EventDate "2024.11.18"]
[EventType "swiss"]
[EventCountry "ITA"]
[SourceTitle "playchess.com"]
[Source "ChessBase"]
[SourceQuality "1"]
[TimeControl "5400+30"]

1. e4 {[%emt 0:00:03]} c6 {[%emt 0:00:03]} 2. d4 {[%emt 0:00:06]} d5 {[%emt 0:00:03]} 3. Nd2 {[%emt 0:00:05]} dxe4 {[%emt 0:00:07]} 4. Nxe4 {[%emt 0:00:06]} Bf5 {[%emt 0:00:14]} 5. Ng3 {[%emt 0:00:14]} Bg6 {[%emt 0:00:06]} 6. h4 {[%emt 0:00:11]} h6 {[%emt 0:00:08]} 7. h5 {[%emt 0:00:05]} Bh7 {[%emt 0:00:04]} 8. Nf3 {[%emt 0:00:09]} Nd7 {[%emt 0:00:12]} 9. Bd3 {[%emt 0:00:47]} Bxd3 {[%emt 0:00:19]} 10. Qxd3 {[%emt 0:00:08]} e6 {[%emt 0:00:14]} 11. Bd2 {[%emt 0:00:14]} Ngf6 {[%emt 0:00:34]} 12. O-O-O {[%emt 0:00:11]} Qc7 {[%emt 0:01:55]} 13. Ne4 {[%emt 0:02:12]} O-O-O {[%emt 0:02:26]} 14. Kb1 {[%emt 0:00:53]} Nxe4 {[%emt 0:01:16]} 15. Qxe4 {[%emt 0:00:06]} Nf6 {[%emt 0:00:44]} 16. Qe2 {[%emt 0:02:04]} Bd6 {[%emt 0:08:45]} 17. c4 {[%emt 0:02:28]} Rhe8 {[%emt 0:14:09]} 18. Bc3 {[%emt 0:01:56]} Rd7 {[%emt 0:13:57]} 19. Bd2 {[%emt 0:11:05]} Rde7 {[%emt 0:16:33]} 20. g3 {[%emt 0:01:43]} Qd8 {[%emt 0:04:52]} 21. Nh4 {[%emt 0:01:44]} Qd7 {[%emt 0:02:09]} 22. Qf3 {[%emt 0:01:21]} Bc7 {[%emt 0:05:05]} 23. Bxh6 {[%emt 0:01:23]} Nxh5 {[%emt 0:01:58]} 24. Qxh5 {[%emt 0:00:45]} gxh6 {[%emt 0:00:15]} 25. Qxh6 {[%emt 0:00:13]} Qd6 {[%emt 0:01:31]} 26. d5 {[%emt 0:02:58]} Qb4 {[%emt 0:04:10]} 27. dxc6 {[%emt 0:04:12]} Be5 {[%emt 0:01:42]} 28. cxb7+ {[%emt 0:00:23]} Rxb7 {[%emt 0:00:46]} 29. b3 {[%emt 0:02:06]} Qa3 {[%emt 0:01:38]} 30. Qc1 {[%emt 0:00:12]} Rxb3+ {[%emt 0:00:31]} 31. Kc2 {[%emt 0:00:31]} Qxa2+ {[%emt 0:00:19]} 0-1

[Event "FIDE WCCC Open-08 2024"]
[Site "Montesilvano"]
[Date "2024.11.25"]
[Round "10.39"]
[White "Glod, Peter"]
[Black "Petrenko, Tymofii"]
[Result "1/2-1/2"]
[Annotator "NA RC"]
[ECO "C14"]
[WhiteElo "1409"]
[BlackElo "1678"]
[PlyCount "42"]
[EventDate "2024.11.18"]
[EventType "swiss"]
[EventCountry "ITA"]
[SourceTitle "playchess.com"]
[Source "ChessBase"]
[SourceQuality "1"]
[TimeControl "5400+30"]

1. e4 {[%emt 0:00:03]} e6 {[%emt 0:00:17]} 2. d4 {[%emt 0:00:09]} d5 {[%emt 0:00:06]} 3. Nc3 {[%emt 0:00:14]} Nf6 {[%emt 0:00:27]} 4. Bg5 {[%emt 0:09:57]} Be7 {[%emt 0:03:48]} 5. e5 {[%emt 0:08:40]} Nfd7 {[%emt 0:04:05]} 6. Bxe7 {[%emt 0:01:30]} Qxe7 {[%emt 0:01:52]} 7. Nf3 {[%emt 0:02:31]} O-O {[%emt 0:04:43]} 8. Bd3 {[%emt 0:00:25]} a6 {[%emt 0:02:11]} 9. O-O {[%emt 0:00:39]} c5 {[%emt 0:00:11]} 10. dxc5 {[%emt 0:11:23]} Nxc5 {[%emt 0:01:39]} 11. Re1 {[%emt 0:01:55]} Nxd3 {[%emt 0:03:59]} 12. Qxd3 {[%emt 0:00:36]} Nc6 {[%emt 0:00:12]} 13. a3 {[%emt 0:07:28]} b5 {[%emt 0:01:28]} 14. b4 {[%emt 0:01:42]} Bb7 {[%emt 0:01:35]} 15. Rad1 {[%emt 0:00:36]} Rac8 {[%emt 0:00:39]} 16. Qe3 {[%emt 0:11:58]} Ba8 {[%emt 0:01:21]} 17. Ne2 {[%emt 0:08:52]} Qc7 {[%emt 0:05:35]} 18. Ned4 {[%emt 0:04:29]} Nxd4 {[%emt 0:01:46]} 19. Nxd4 {[%emt 0:01:09]} Rfd8 {[%emt 0:01:52]} 20. f4 {[%emt 0:02:55]} Qb6 {[%emt 0:04:42]} 21. Rf1 {[%emt 0:04:13]} g6 {[%emt 0:03:42]} 1/2-1/2